[Event "44th Chess Olympiad Women 2022"]
[Site "Chennai"]
[Date "2022.07.31"]
[Round "3.12"]
[White "Gaal, Zsoka"]
[Black "Argote Heredia, Valentina"]
[Result "1-0"]
[WhiteElo "2313"]
[BlackElo "2205"]
[Annotator "RC"]
[PlyCount "73"]
[EventDate "2022.??.??"]
[TimeControl "60"]

1. Nf3 {[%emt 0:00:11]} d5 {[%emt 0:00:04]} 2. g3 {[%emt 0:00:10]} e6 {[%emt 0:
00:00]} 3. Bg2 {[%emt 0:00:10]} Nf6 {[%emt 0:00:06]} 4. O-O {[%emt 0:00:12]} b5
{[%emt 0:00:25]} 5. d3 {[%emt 0:01:26]} Bb7 {[%emt 0:00:06]} 6. c4 {[%emt 0:00:
00]} a6 {[%emt 0:26:08]} 7. a3 {[%emt 0:09:52]} Nbd7 {[%emt 0:05:19]} 8. Nc3 {
[%emt 0:03:16]} c6 {[%emt 0:04:51]} 9. e4 {[%emt 0:09:59]} Nb6 {[%emt 0:00:49]}
10. exd5 {[%emt 0:03:41]} cxd5 {[%emt 0:08:29]} 11. cxb5 {[%emt 0:01:34]} axb5
{[%emt 0:04:57]} 12. Nxb5 {[%emt 0:01:25]} Ba6 {[%emt 0:06:36]} 13. Nbd4 {
[%emt 0:07:05]} Bd6 {[%emt 0:02:48]} 14. Be3 {[%emt 0:03:33]} O-O {[%emt 0:00:
00]} 15. Rc1 {[%emt 0:02:32]} Nbd7 {[%emt 0:02:38]} 16. Nc6 {[%emt 0:04:33]}
Qe8 {[%emt 0:00:07]} 17. Re1 {[%emt 0:01:12]} Nb8 {[%emt 0:02:04]} 18. Nce5 {
[%emt 0:04:16]} Bb5 {[%emt 0:02:25]} 19. Bd4 {[%emt 0:01:27]} Nbd7 {[%emt 0:00:
00]} 20. Qd2 {[%emt 0:01:06]} Qb8 {[%emt 0:06:39]} 21. Qg5 {[%emt 0:07:08]}
Nxe5 {[%emt 0:03:18]} 22. Nxe5 {[%emt 0:00:23]} h6 {[%emt 0:00:43]} 23. Qe3 {
[%emt 0:05:16]} Nd7 {[%emt 0:03:28]} 24. Ng4 {[%emt 0:08:13]} Re8 {[%emt 0:00:
00]} 25. Nxh6+ {[%emt 0:06:22]} gxh6 {[%emt 0:00:05]} 26. Qxh6 {[%emt 0:00:12]}
e5 {[%emt 0:02:57]} 27. Bxd5 {[%emt 0:00:45]} Bxd3 {[%emt 0:01:49]} 28. Bxa8 {
[%emt 0:03:06]} Bf8 {[%emt 0:00:48]} 29. Qg5+ {[%emt 0:00:26]} Bg7 {[%emt 0:00:
00]} 30. Bc6 {[%emt 0:00:52]} exd4 {[%emt 0:00:23]} 31. Bxd7 {[%emt 0:01:03]}
Rd8 {[%emt 0:00:24]} 32. Qxd8+ {[%emt 0:04:43]} Qxd8 {[%emt 0:00:04]} 33. Re8+
{[%emt 0:00:07]} Qxe8 {[%emt 0:00:05]} 34. Bxe8 {[%emt 0:00:07]} Be2 {[%emt 0:
00:00]} 35. Ba4 {[%emt 0:00:09]} d3 {[%emt 0:00:17]} 36. Bd1 {[%emt 0:00:26]}
Bxb2 {[%emt 0:00:43]} 37. Rc8+ {[%emt 0:00:22]} 1-0

[Event "44th Chess Olympiad Women 2022"]
[Site "Chennai"]
[Date "2022.07.31"]
[Round "3.12"]
[White "Hoang, Thanh Trang"]
[Black "Castrillon Gomez, Melissa"]
[Result "1-0"]
[WhiteElo "2376"]
[BlackElo "2230"]
[Annotator "RC"]
[PlyCount "81"]
[EventDate "2022.??.??"]
[TimeControl "60"]

1. d4 {[%emt 0:00:09]} d5 {[%emt 0:00:24]} 2. c4 {[%emt 0:00:27]} e6 {[%emt 0:
00:00]} 3. Nf3 {[%emt 0:00:22]} c6 {[%emt 0:06:10]} 4. Qc2 {[%emt 0:03:35]} f5
{[%emt 0:01:54]} 5. g3 {[%emt 0:01:09]} Nf6 {[%emt 0:00:18]} 6. Bg2 {[%emt 0:
00:00]} Be7 {[%emt 0:00:27]} 7. O-O {[%emt 0:01:49]} O-O {[%emt 0:00:54]} 8. b3
{[%emt 0:04:36]} Ne4 {[%emt 0:11:06]} 9. Bb2 {[%emt 0:04:15]} Nd7 {[%emt 0:00:
00]} 10. Ne5 {[%emt 0:04:16]} Qe8 {[%emt 0:06:56]} 11. Nd2 {[%emt 0:05:03]} Qh5
{[%emt 0:02:38]} 12. Nxe4 {[%emt 0:07:57]} fxe4 {[%emt 0:05:08]} 13. Nxd7 {
[%emt 0:04:44]} Bxd7 {[%emt 0:00:08]} 14. f3 {[%emt 0:00:21]} Rf6 {[%emt 0:00:
00]} 15. fxe4 {[%emt 0:21:12]} Rh6 {[%emt 0:04:00]} 16. h3 {[%emt 0:00:57]} e5
{[%emt 0:03:13]} 17. exd5 {[%emt 0:06:09]} Bxh3 {[%emt 0:02:00]} 18. Qe4 {
[%emt 0:03:46]} Bxg2 {[%emt 0:15:47]} 19. Qxg2 {[%emt 0:00:34]} Bg5 {[%emt 0:
00:00]} 20. Bc1 {[%emt 0:03:15]} Bxc1 {[%emt 0:07:44]} 21. Raxc1 {[%emt 0:00:
00]} exd4 {[%emt 0:00:15]} 22. Rf4 {[%emt 0:03:14]} Re8 {[%emt 0:02:40]} 23.
Rcf1 {[%emt 0:00:18]} g5 {[%emt 0:04:09]} 24. R4f3 {[%emt 0:07:26]} g4 {
[%emt 0:09:53]} 25. Rf5 {[%emt 0:02:11]} Qh3 {[%emt 0:03:18]} 26. Rg5+ {
[%emt 0:04:29]} Kh8 {[%emt 0:00:43]} 27. Qxh3 {[%emt 0:02:10]} gxh3 {[%emt 0:
00:00]} 28. Rf2 {[%emt 0:00:56]} cxd5 {[%emt 0:00:40]} 29. cxd5 {[%emt 0:01:14]
} Rg6 {[%emt 0:00:36]} 30. Rxg6 {[%emt 0:00:54]} hxg6 {[%emt 0:00:01]} 31. Rf4
{[%emt 0:01:31]} Rxe2 {[%emt 0:00:41]} 32. Rxd4 {[%emt 0:00:14]} Re7 {[%emt 0:
00:00]} 33. Kh2 {[%emt 0:00:33]} Kg7 {[%emt 0:00:16]} 34. d6 {[%emt 0:00:50]}
Rd7 {[%emt 0:00:11]} 35. Kxh3 {[%emt 0:00:14]} Kf6 {[%emt 0:00:51]} 36. Kg4 {
[%emt 0:00:09]} a6 {[%emt 0:00:23]} 37. Rd2 {[%emt 0:02:16]} b6 {[%emt 0:00:11]
} 38. Rd1 {[%emt 0:01:00]} a5 {[%emt 0:00:24]} 39. Kf4 {[%emt 0:00:31]} Kf7 {
[%emt 0:01:31]} 40. Ke5 {[%emt 0:00:19]} Rd8 {[%emt 0:00:28]} 41. Rf1+ {
[%emt 0:30:48]} 1-0

[Event "44th Chess Olympiad Women 2022"]
[Site "Chennai"]
[Date "2022.07.31"]
[Round "3.12"]
[White "Rodriguez Rueda, Paula Andrea"]
[Black "Terbe, Julianna"]
[Result "1/2-1/2"]
[WhiteElo "2237"]
[BlackElo "2291"]
[Annotator "RC"]
[PlyCount "108"]
[EventDate "2022.??.??"]
[TimeControl "60"]

1. d4 {[%emt 0:00:03]} d5 {[%emt 0:00:07]} 2. c4 {[%emt 0:00:17]} c6 {[%emt 0:
00:00]} 3. Nf3 {[%emt 0:00:41]} Nf6 {[%emt 0:00:11]} 4. e3 {[%emt 0:00:51]} Bf5
{[%emt 0:00:10]} 5. Nc3 {[%emt 0:00:17]} e6 {[%emt 0:00:05]} 6. Nh4 {[%emt 0:
00:00]} Bg6 {[%emt 0:00:57]} 7. Nxg6 {[%emt 0:01:35]} hxg6 {[%emt 0:00:05]} 8.
Bd3 {[%emt 0:00:41]} Nbd7 {[%emt 0:00:20]} 9. O-O {[%emt 0:03:52]} Bd6 {
[%emt 0:00:46]} 10. g3 {[%emt 0:00:07]} O-O {[%emt 0:00:16]} 11. e4 {[%emt 0:
00:00]} dxe4 {[%emt 0:05:51]} 12. Nxe4 {[%emt 0:00:07]} Nxe4 {[%emt 0:00:04]}
13. Bxe4 {[%emt 0:00:04]} a5 {[%emt 0:00:59]} 14. Bg2 {[%emt 0:02:43]} Nf6 {
[%emt 0:02:48]} 15. Bd2 {[%emt 0:07:56]} Qe7 {[%emt 0:12:34]} 16. Bc3 {[%emt 0:
00:00]} Bb4 {[%emt 0:01:12]} 17. Qb3 {[%emt 0:03:27]} Rfd8 {[%emt 0:05:27]} 18.
a3 {[%emt 0:15:56]} Bd6 {[%emt 0:04:16]} 19. Rfe1 {[%emt 0:12:05]} a4 {[%emt 0:
00:00]} 20. Qc2 {[%emt 0:01:30]} Qc7 {[%emt 0:00:49]} 21. Qe2 {[%emt 0:00:44]}
Rd7 {[%emt 0:06:58]} 22. Rad1 {[%emt 0:04:00]} Be7 {[%emt 0:07:37]} 23. Qe5 {
[%emt 0:14:29]} Qb6 {[%emt 0:04:52]} 24. Bh3 {[%emt 0:01:35]} Bf8 {[%emt 0:00:
00]} 25. Qg5 {[%emt 0:07:43]} Qb3 {[%emt 0:07:01]} 26. c5 {[%emt 0:08:53]} Rd5
{[%emt 0:03:00]} 27. Qc1 {[%emt 0:02:18]} Rh5 {[%emt 0:09:13]} 28. Bg2 {
[%emt 0:00:27]} Nd5 {[%emt 0:04:17]} 29. Rd2 {[%emt 0:00:41]} Nxc3 {[%emt 0:00:
00]} 30. Qxc3 {[%emt 0:00:36]} Qb5 {[%emt 0:02:06]} 31. Bf3 {[%emt 0:00:23]}
Rf5 {[%emt 0:01:11]} 32. Be4 {[%emt 0:00:01]} Rh5 {[%emt 0:00:08]} 33. Bf3 {
[%emt 0:00:00]} Rf5 {[%emt 0:00:09]} 34. Be4 {[%emt 0:00:01]} Rh5 {[%emt 0:00:
00]} 35. Bd3 {[%emt 0:02:07]} Qa5 {[%emt 0:00:14]} 36. Qxa5 {[%emt 0:00:25]}
Rxa5 {[%emt 0:00:01]} 37. Rc2 {[%emt 0:00:25]} Rd5 {[%emt 0:01:00]} 38. Rc4 {
[%emt 0:00:28]} Bxc5 {[%emt 0:01:20]} 39. dxc5 {[%emt 0:00:39]} Rxd3 {[%emt 0:
00:00]} 40. Ree4 {[%emt 0:00:29]} g5 {[%emt 0:02:36]} 41. Rb4 {[%emt 0:06:16]}
Rxc5 {[%emt 0:05:50]} 42. Rxb7 {[%emt 0:00:02]} Rc2 {[%emt 0:02:13]} 43. Rxa4 {
[%emt 0:05:31]} Rf3 {[%emt 0:00:20]} 44. h4 {[%emt 0:01:27]} Rfxf2 {[%emt 0:00:
00]} 45. hxg5 {[%emt 0:00:14]} Rg2+ {[%emt 0:03:17]} 46. Kf1 {[%emt 0:00:52]}
Rcf2+ {[%emt 0:05:27]} 47. Ke1 {[%emt 0:00:01]} Kh7 {[%emt 0:03:08]} 48. Rf4 {
[%emt 0:04:09]} Rxb2 {[%emt 0:01:08]} 49. Rxb2 {[%emt 0:00:34]} Rxb2 {[%emt 0:
00:00]} 50. Rxf7 {[%emt 0:01:34]} Rb3 {[%emt 0:06:17]} 51. Kf2 {[%emt 0:00:35]}
Kg6 {[%emt 0:02:33]} 52. Re7 {[%emt 0:00:09]} Kf5 {[%emt 0:01:27]} 53. Rf7+ {
[%emt 0:05:02]} Kxg5 {[%emt 0:01:40]} 54. Rxg7+ {[%emt 0:00:05]} Kf6 {[%emt 0:
00:00]} 1/2-1/2

[Event "44th Chess Olympiad Women 2022"]
[Site "Chennai"]
[Date "2022.07.31"]
[Round "3.13"]
[White "Calzetta Ruiz, Monica"]
[Black "Johansson, Viktoria"]
[Result "0-1"]
[WhiteElo "2230"]
[BlackElo "2041"]
[Annotator "RC"]
[PlyCount "104"]
[EventDate "2022.??.??"]
[TimeControl "60"]

1. e4 {[%emt 0:00:04]} c5 {[%emt 0:00:04]} 2. Nf3 {[%emt 0:00:07]} Nc6 {
[%emt 0:00:09]} 3. Nc3 {[%emt 0:00:06]} e5 {[%emt 0:00:29]} 4. Bc4 {[%emt 0:00:
00]} Be7 {[%emt 0:01:11]} 5. d3 {[%emt 0:00:17]} Nf6 {[%emt 0:00:30]} 6. Ng5 {
[%emt 0:00:48]} O-O {[%emt 0:00:28]} 7. f4 {[%emt 0:00:12]} exf4 {[%emt 0:00:
00]} 8. Bxf4 {[%emt 0:00:34]} d6 {[%emt 0:02:27]} 9. O-O {[%emt 0:00:23]} h6 {
[%emt 0:01:45]} 10. Nf3 {[%emt 0:00:40]} Be6 {[%emt 0:02:37]} 11. Nd5 {[%emt 0:
00:00]} Bxd5 {[%emt 0:04:24]} 12. Bxd5 {[%emt 0:04:23]} Nxd5 {[%emt 0:14:46]}
13. exd5 {[%emt 0:00:21]} Ne5 {[%emt 0:05:02]} 14. Bxe5 {[%emt 0:00:15]} dxe5 {
[%emt 0:00:11]} 15. c4 {[%emt 0:00:06]} Bd6 {[%emt 0:03:41]} 16. g4 {[%emt 0:
00:00]} f5 {[%emt 0:03:10]} 17. gxf5 {[%emt 0:00:08]} Rxf5 {[%emt 0:00:21]} 18.
Qe2 {[%emt 0:06:10]} Qf6 {[%emt 0:05:32]} 19. Nd2 {[%emt 0:03:50]} Qg6+ {
[%emt 0:09:34]} 20. Kh1 {[%emt 0:01:18]} Raf8 {[%emt 0:01:35]} 21. Rxf5 {
[%emt 0:26:05]} Rxf5 {[%emt 0:02:27]} 22. Ne4 {[%emt 0:04:10]} Bf8 {[%emt 0:00:
00]} 23. Rg1 {[%emt 0:08:29]} Qf7 {[%emt 0:03:49]} 24. Rg3 {[%emt 0:10:10]} b6
{[%emt 0:03:07]} 25. b3 {[%emt 0:00:21]} Be7 {[%emt 0:04:06]} 26. Kg2 {[%emt 0:
00:00]} Rf4 {[%emt 0:09:05]} 27. Rg4 {[%emt 0:20:25]} Qf5 {[%emt 0:09:38]} 28.
h3 {[%emt 0:00:32]} Bf8 {[%emt 0:03:19]} 29. Ng3 {[%emt 0:03:14]} Qf7 {[%emt 0:
00:00]} 30. Ne4 {[%emt 0:02:34]} Qf5 {[%emt 0:00:18]} 31. Ng3 {[%emt 0:02:44]}
Qf7 {[%emt 0:00:06]} 32. Kg1 {[%emt 0:00:13]} Bd6 {[%emt 0:01:35]} 33. Ne4 {
[%emt 0:00:08]} Bf8 {[%emt 0:00:08]} 34. Qg2 {[%emt 0:02:11]} Rf3 {[%emt 0:00:
00]} 35. Rg3 {[%emt 0:00:16]} Rf4 {[%emt 0:00:11]} 36. Rg6 {[%emt 0:00:42]} Kh7
{[%emt 0:00:50]} 37. Re6 {[%emt 0:03:24]} Rf5 {[%emt 0:01:06]} 38. h4 {[%emt 0:
00:00]} Rf4 {[%emt 0:00:37]} 39. Qg3 {[%emt 0:01:56]} Qf5 {[%emt 0:00:25]} 40.
Nf2 {[%emt 0:00:12]} Rf3 {[%emt 0:00:27]} 41. Qg2 {[%emt 0:03:41]} Qf4 {
[%emt 0:05:29]} 42. Ne4 {[%emt 0:04:52]} Qe3+ {[%emt 0:09:59]} 43. Kh2 {
[%emt 0:00:56]} Qf4+ {[%emt 0:00:21]} 44. Kg1 {[%emt 0:00:16]} Rxd3 {[%emt 0:
00:00]} 45. Qg6+ {[%emt 0:10:34]} Kh8 {[%emt 0:00:13]} 46. Kg2 {[%emt 0:13:08]}
Qf3+ {[%emt 0:00:43]} 47. Kh2 {[%emt 0:00:07]} Qh3+ {[%emt 0:00:52]} 48. Kg1 {
[%emt 0:00:02]} Rd1+ {[%emt 0:00:41]} 49. Kf2 {[%emt 0:00:09]} Rf1+ {[%emt 0:
00:00]} 50. Ke2 {[%emt 0:00:24]} Qf3+ {[%emt 0:00:26]} 51. Kd2 {[%emt 0:00:05]}
Rd1+ {[%emt 0:00:28]} 52. Kc2 {[%emt 0:00:08]} Qe2+ {[%emt 0:00:11]} 0-1

[Event "44th Chess Olympiad Women 2022"]
[Site "Chennai"]
[Date "2022.07.31"]
[Round "3.13"]
[White "Cramling Bellon, Anna"]
[Black "Garcia Martin, Marta"]
[Result "0-1"]
[WhiteElo "2065"]
[BlackElo "2305"]
[Annotator "ChessBase"]
[PlyCount "110"]
[EventDate "2022.??.??"]
[TimeControl "60"]

1. d4 {[%emt 0:00:06]} d5 {[%emt 0:00:16]} 2. Nf3 {[%emt 0:00:44]} e6 {[%emt 0:
00:00]} 3. e3 {[%emt 0:00:32]} Nf6 {[%emt 0:00:34]} 4. Bd3 {[%emt 0:00:34]} b6
{[%emt 0:09:05]} 5. Nbd2 {[%emt 0:06:39]} Bb7 {[%emt 0:00:14]} 6. c3 {[%emt 0:
00:00]} Nbd7 {[%emt 0:17:16]} 7. O-O {[%emt 0:14:50]} Bd6 {[%emt 0:01:43]} 8.
Qe2 {[%emt 0:06:20]} Ne4 {[%emt 0:03:31]} 9. Ba6 {[%emt 0:13:26]} Bxa6 {
[%emt 0:01:03]} 10. Qxa6 {[%emt 0:00:06]} f5 {[%emt 0:17:57]} 11. c4 {[%emt 0:
00:00]} c6 {[%emt 0:03:41]} 12. c5 {[%emt 0:09:02]} bxc5 {[%emt 0:24:53]} 13.
dxc5 {[%emt 0:00:21]} Ndxc5 {[%emt 0:02:43]} 14. Qxc6+ {[%emt 0:00:25]} Ke7 {
[%emt 0:00:05]} 15. b4 {[%emt 0:08:25]} Rc8 {[%emt 0:02:46]} 16. Qb5 {[%emt 0:
00:00]} Nc3 {[%emt 0:04:47]} 17. Qa5 {[%emt 0:00:19]} Qxa5 {[%emt 0:05:26]} 18.
bxa5 {[%emt 0:00:06]} Ne2+ {[%emt 0:00:05]} 19. Kh1 {[%emt 0:00:09]} Nd3 {
[%emt 0:00:06]} 20. Nb3 {[%emt 0:02:03]} e5 {[%emt 0:03:03]} 21. Bd2 {[%emt 0:
00:00]} Rc4 {[%emt 0:00:33]} 22. Ne1 {[%emt 0:09:22]} Nb4 {[%emt 0:00:23]} 23.
Bxb4 {[%emt 0:01:00]} Bxb4 {[%emt 0:00:25]} 24. Nd3 {[%emt 0:00:21]} Bd6 {
[%emt 0:00:26]} 25. Rfe1 {[%emt 0:02:17]} Nc3 {[%emt 0:00:04]} 26. Nb2 {
[%emt 0:05:17]} Rb4 {[%emt 0:00:54]} 27. Nd3 {[%emt 0:00:28]} Rb5 {[%emt 0:00:
00]} 28. f4 {[%emt 0:02:23]} e4 {[%emt 0:00:29]} 29. Ndc1 {[%emt 0:02:35]} g6 {
[%emt 0:00:38]} 30. Nd4 {[%emt 0:00:23]} Rb2 {[%emt 0:00:24]} 31. Ncb3 {
[%emt 0:00:41]} a6 {[%emt 0:00:36]} 32. Rec1 {[%emt 0:00:37]} Nxa2 {[%emt 0:00:
00]} 33. Rc6 {[%emt 0:00:05]} Nb4 {[%emt 0:00:29]} 34. Rb6 {[%emt 0:00:10]} Rc8
{[%emt 0:00:31]} 35. Rb7+ {[%emt 0:00:31]} Kf6 {[%emt 0:00:31]} 36. h3 {
[%emt 0:01:02]} h5 {[%emt 0:00:30]} 37. Rb6 {[%emt 0:00:24]} Ke7 {[%emt 0:00:
00]} 38. Rb7+ {[%emt 0:00:26]} Rc7 {[%emt 0:00:11]} 39. Rxc7+ {[%emt 0:00:26]}
Bxc7 {[%emt 0:00:03]} 40. Rc1 {[%emt 0:00:04]} Bd6 {[%emt 0:00:39]} 41. Kh2 {
[%emt 0:14:40]} h4 {[%emt 0:15:17]} 42. Nc5 {[%emt 0:14:44]} Na2 {[%emt 0:00:
00]} 43. Nc6+ {[%emt 0:02:13]} Ke8 {[%emt 0:00:18]} 44. Na4 {[%emt 0:00:04]}
Nxc1 {[%emt 0:00:05]} 45. Nxb2 {[%emt 0:00:10]} Nb3 {[%emt 0:01:03]} 46. Nd1 {
[%emt 0:01:56]} Kd7 {[%emt 0:00:37]} 47. Ne5+ {[%emt 0:00:33]} Bxe5 {[%emt 0:
00:00]} 48. fxe5 {[%emt 0:00:03]} Ke6 {[%emt 0:00:36]} 49. g3 {[%emt 0:00:36]}
Nxa5 {[%emt 0:02:09]} 50. gxh4 {[%emt 0:00:16]} Nc4 {[%emt 0:00:25]} 51. Kg3 {
[%emt 0:00:21]} Kxe5 {[%emt 0:00:05]} 52. h5 {[%emt 0:00:34]} gxh5 {[%emt 0:00:
00]} 53. Kh4 {[%emt 0:00:03]} f4 {[%emt 0:01:12]} 54. exf4+ {[%emt 0:00:34]}
Kxf4 {[%emt 0:00:05]} 55. Kxh5 {[%emt 0:00:53]} d4 {[%emt 0:00:22]} 0-1

[Event "44th Chess Olympiad Women 2022"]
[Site "Chennai"]
[Date "2022.07.31"]
[Round "3.13"]
[White "Cramling, Pia"]
[Black "Vega Gutierrez, Sabrina"]
[Result "1-0"]
[WhiteElo "2459"]
[BlackElo "2366"]
[Annotator "ChessBase"]
[PlyCount "77"]
[EventDate "2022.??.??"]
[TimeControl "60"]

1. d4 {[%emt 0:00:04]} d5 {[%emt 0:00:07]} 2. Nf3 {[%emt 0:00:15]} Nf6 {
[%emt 0:00:14]} 3. c4 {[%emt 0:00:22]} e6 {[%emt 0:00:06]} 4. g3 {[%emt 0:00:
00]} c6 {[%emt 0:02:01]} 5. Bg2 {[%emt 0:00:57]} Be7 {[%emt 0:00:11]} 6. O-O {
[%emt 0:00:39]} O-O {[%emt 0:00:04]} 7. Qc2 {[%emt 0:02:09]} b6 {[%emt 0:01:46]
} 8. Rd1 {[%emt 0:01:07]} Ba6 {[%emt 0:11:00]} 9. b3 {[%emt 0:04:07]} Nbd7 {
[%emt 0:00:35]} 10. Nbd2 {[%emt 0:00:16]} Rc8 {[%emt 0:04:21]} 11. e4 {[%emt 0:
00:00]} c5 {[%emt 0:02:15]} 12. exd5 {[%emt 0:05:17]} exd5 {[%emt 0:00:32]} 13.
Nf1 {[%emt 0:21:11]} Re8 {[%emt 0:22:16]} 14. Ne3 {[%emt 0:02:23]} b5 {[%emt 0:
00:00]} 15. dxc5 {[%emt 0:08:40]} Bxc5 {[%emt 0:02:50]} 16. Nxd5 {[%emt 0:00:
00]} Nxd5 {[%emt 0:08:02]} 17. Rxd5 {[%emt 0:02:01]} Bb7 {[%emt 0:06:01]} 18.
Rd1 {[%emt 0:01:51]} Be4 {[%emt 0:03:17]} 19. Qc3 {[%emt 0:06:23]} Be7 {
[%emt 0:12:33]} 20. Be3 {[%emt 0:07:19]} Bf6 {[%emt 0:00:02]} 21. Bd4 {[%emt 0:
00:00]} bxc4 {[%emt 0:00:02]} 22. bxc4 {[%emt 0:00:41]} Nb6 {[%emt 0:00:41]}
23. c5 {[%emt 0:07:39]} Nd5 {[%emt 0:03:54]} 24. Qc4 {[%emt 0:00:51]} Qc7 {
[%emt 0:07:07]} 25. Rac1 {[%emt 0:03:48]} h6 {[%emt 0:00:30]} 26. Bxf6 {
[%emt 0:03:01]} Nxf6 {[%emt 0:00:03]} 27. Nd4 {[%emt 0:01:52]} Bxg2 {[%emt 0:
00:00]} 28. Kxg2 {[%emt 0:00:05]} Nd7 {[%emt 0:00:39]} 29. c6 {[%emt 0:00:44]}
Ne5 {[%emt 0:00:02]} 30. Qc5 {[%emt 0:01:51]} a6 {[%emt 0:00:42]} 31. Rd2 {
[%emt 0:00:45]} Red8 {[%emt 0:00:37]} 32. Rc3 {[%emt 0:02:49]} Ng4 {[%emt 0:00:
00]} 33. Re2 {[%emt 0:01:59]} Nf6 {[%emt 0:00:33]} 34. Re7 {[%emt 0:01:09]} Qd6
{[%emt 0:00:28]} 35. c7 {[%emt 0:01:12]} Rd7 {[%emt 0:00:02]} 36. Nf5 {[%emt 0:
00:00]} Qxc5 {[%emt 0:00:55]} 37. Rxc5 {[%emt 0:00:06]} Rd5 {[%emt 0:00:06]}
38. Rxd5 {[%emt 0:01:04]} Nxd5 {[%emt 0:00:02]} 39. Re5 {[%emt 0:00:20]} 1-0

[Event "44th Chess Olympiad Women 2022"]
[Site "Chennai"]
[Date "2022.07.31"]
[Round "3.13"]
[White "Matnadze, Ana"]
[Black "Agrest, Inna"]
[Result "1/2-1/2"]
[WhiteElo "2406"]
[BlackElo "2217"]
[Annotator "RC"]
[PlyCount "94"]
[EventDate "2022.??.??"]
[TimeControl "60"]

1. Nf3 {[%emt 0:00:04]} Nf6 {[%emt 0:00:19]} 2. g3 {[%emt 0:00:03]} g6 {
[%emt 0:00:09]} 3. Bg2 {[%emt 0:00:08]} Bg7 {[%emt 0:00:04]} 4. O-O {[%emt 0:
00:00]} O-O {[%emt 0:00:03]} 5. d4 {[%emt 0:00:04]} d6 {[%emt 0:00:44]} 6. Re1
{[%emt 0:00:07]} Nbd7 {[%emt 0:02:43]} 7. e4 {[%emt 0:00:21]} e5 {[%emt 0:00:
00]} 8. c3 {[%emt 0:11:05]} Re8 {[%emt 0:01:52]} 9. Nh4 {[%emt 0:03:52]} c6 {
[%emt 0:11:45]} 10. h3 {[%emt 0:02:16]} d5 {[%emt 0:07:30]} 11. exd5 {[%emt 0:
00:00]} Nxd5 {[%emt 0:03:21]} 12. c4 {[%emt 0:08:40]} N5b6 {[%emt 0:01:54]} 13.
d5 {[%emt 0:00:16]} Nxc4 {[%emt 0:05:03]} 14. dxc6 {[%emt 0:01:11]} bxc6 {
[%emt 0:05:44]} 15. Bxc6 {[%emt 0:02:11]} Rb8 {[%emt 0:00:58]} 16. Nc3 {
[%emt 0:06:22]} Qc7 {[%emt 0:05:01]} 17. Qf3 {[%emt 0:14:03]} e4 {[%emt 0:00:
00]} 18. Bxe4 {[%emt 0:03:24]} Nde5 {[%emt 0:03:07]} 19. Qf4 {[%emt 0:09:45]}
Bxh3 {[%emt 0:09:10]} 20. Nd5 {[%emt 0:09:35]} Qa5 {[%emt 0:05:38]} 21. Re2 {
[%emt 0:07:54]} Rbd8 {[%emt 0:06:34]} 22. b4 {[%emt 0:10:13]} Qa4 {[%emt 0:00:
00]} 23. Be3 {[%emt 0:00:14]} Nxe3 {[%emt 0:04:23]} 24. fxe3 {[%emt 0:00:45]}
Qb5 {[%emt 0:09:36]} 25. Rd2 {[%emt 0:01:04]} Be6 {[%emt 0:00:33]} 26. Nc7 {
[%emt 0:00:56]} Qxb4 {[%emt 0:00:15]} 27. Nxe8 {[%emt 0:00:08]} Qxd2 {[%emt 0:
00:00]} 28. Nxg7 {[%emt 0:00:14]} Qc3 {[%emt 0:00:26]} 29. Rf1 {[%emt 0:00:17]}
Bc4 {[%emt 0:00:27]} 30. Rf2 {[%emt 0:01:19]} Rd1+ {[%emt 0:00:22]} 31. Kg2 {
[%emt 0:00:15]} Kxg7 {[%emt 0:00:47]} 32. Qf6+ {[%emt 0:00:29]} Kg8 {[%emt 0:
00:00]} 33. Nf3 {[%emt 0:00:38]} Bf1+ {[%emt 0:00:53]} 34. Rxf1 {[%emt 0:00:26]
} Qb2+ {[%emt 0:00:23]} 35. Kh3 {[%emt 0:00:53]} Rxf1 {[%emt 0:00:16]} 36. Qxe5
{[%emt 0:00:26]} Rh1+ {[%emt 0:00:38]} 37. Kg4 {[%emt 0:00:01]} f5+ {[%emt 0:
00:00]} 38. Bxf5 {[%emt 0:00:43]} Qxe5 {[%emt 0:00:37]} 39. Nxe5 {[%emt 0:00:
00]} gxf5+ {[%emt 0:00:06]} 40. Kxf5 {[%emt 0:00:04]} Ra1 {[%emt 0:00:14]} 41.
e4 {[%emt 0:30:53]} Rxa2 {[%emt 0:05:19]} 42. Ng4 {[%emt 0:00:00]} Kf7 {
[%emt 0:01:39]} 43. e5 {[%emt 0:00:00]} Ke7 {[%emt 0:02:12]} 44. Ne3 {[%emt 0:
00:00]} Rf2+ {[%emt 0:00:47]} 45. Ke4 {[%emt 0:00:00]} Re2 {[%emt 0:02:32]} 46.
Kf3 {[%emt 0:00:00]} Rxe3+ {[%emt 0:02:10]} 47. Kxe3 {[%emt 0:00:00]} Ke6 {
[%emt 0:00:06]} 1/2-1/2

[Event "44th Chess Olympiad Women 2022"]
[Site "Chennai"]
[Date "2022.07.31"]
[Round "3.14"]
[White "Forgas Moreno, Yaniela"]
[Black "Phan, Nguyen Mai Chi"]
[Result "1-0"]
[WhiteElo "2343"]
[BlackElo "2139"]
[Annotator "RC"]
[PlyCount "109"]
[EventDate "2022.??.??"]
[TimeControl "60"]

1. d3 {[%emt 0:00:10]} d5 {[%emt 0:00:40]} 2. f4 {[%emt 0:00:13]} c5 {[%emt 0:
00:00]} 3. Nf3 {[%emt 0:00:17]} Nf6 {[%emt 0:00:32]} 4. g3 {[%emt 0:00:18]} g6
{[%emt 0:00:27]} 5. Bg2 {[%emt 0:00:19]} Bg7 {[%emt 0:00:25]} 6. O-O {[%emt 0:
00:00]} O-O {[%emt 0:01:06]} 7. Nc3 {[%emt 0:05:23]} d4 {[%emt 0:16:01]} 8. Na4
{[%emt 0:07:33]} Qc7 {[%emt 0:03:23]} 9. c4 {[%emt 0:00:40]} Nbd7 {[%emt 0:00:
00]} 10. Rb1 {[%emt 0:08:18]} a5 {[%emt 0:09:15]} 11. a3 {[%emt 0:09:23]} Ra6 {
[%emt 0:16:17]} 12. b4 {[%emt 0:12:36]} axb4 {[%emt 0:00:26]} 13. axb4 {
[%emt 0:00:11]} b6 {[%emt 0:00:52]} 14. Bd2 {[%emt 0:20:44]} Bb7 {[%emt 0:00:
00]} 15. bxc5 {[%emt 0:00:20]} bxc5 {[%emt 0:00:26]} 16. Rxb7 {[%emt 0:01:11]}
Qxb7 {[%emt 0:00:12]} 17. Nxd4 {[%emt 0:00:12]} Qc7 {[%emt 0:01:34]} 18. Nb5 {
[%emt 0:00:17]} Qc8 {[%emt 0:06:26]} 19. Qc2 {[%emt 0:03:08]} Nb6 {[%emt 0:00:
00]} 20. Nxb6 {[%emt 0:06:05]} Rxb6 {[%emt 0:00:05]} 21. e3 {[%emt 0:00:05]}
Ne8 {[%emt 0:05:47]} 22. Nc3 {[%emt 0:09:50]} e6 {[%emt 0:03:43]} 23. Nb5 {
[%emt 0:04:35]} Nd6 {[%emt 0:01:49]} 24. Ba5 {[%emt 0:00:40]} Ra6 {[%emt 0:00:
00]} 25. Nxd6 {[%emt 0:00:15]} Rxd6 {[%emt 0:00:04]} 26. Rb1 {[%emt 0:00:08]}
Bf6 {[%emt 0:04:30]} 27. Rb5 {[%emt 0:01:36]} Bd8 {[%emt 0:01:05]} 28. Bc3 {
[%emt 0:00:48]} f6 {[%emt 0:04:39]} 29. Bb2 {[%emt 0:02:01]} Rb6 {[%emt 0:00:
00]} 30. Ba3 {[%emt 0:01:01]} Rxb5 {[%emt 0:00:45]} 31. cxb5 {[%emt 0:00:06]}
Bb6 {[%emt 0:00:10]} 32. Qc4 {[%emt 0:01:05]} Kf7 {[%emt 0:01:01]} 33. Bc6 {
[%emt 0:01:22]} Rd8 {[%emt 0:00:38]} 34. Bxc5 {[%emt 0:02:30]} Bxc5 {[%emt 0:
00:00]} 35. Qxc5 {[%emt 0:00:05]} Rxd3 {[%emt 0:00:33]} 36. Qa7+ {[%emt 0:00:
00]} Kg8 {[%emt 0:00:13]} 37. Kf2 {[%emt 0:00:55]} Rd6 {[%emt 0:00:58]} 38. Qc5
{[%emt 0:00:47]} Qc7 {[%emt 0:00:34]} 39. Ke2 {[%emt 0:00:32]} Kg7 {[%emt 0:00:
00]} 40. g4 {[%emt 0:00:42]} Qd8 {[%emt 0:00:26]} 41. Qc3 {[%emt 0:30:43]} Kf7
{[%emt 0:30:36]} 42. h4 {[%emt 0:00:31]} g5 {[%emt 0:00:00]} 43. fxg5 {[%emt 0:
00:00]} fxg5 {[%emt 0:00:00]} 44. h5 {[%emt 0:00:00]} Qf6 {[%emt 0:00:00]} 45.
Be8+ {[%emt 0:00:00]} Ke7 {[%emt 0:00:00]} 46. Qc7+ {[%emt 0:00:00]} Kxe8 {
[%emt 0:00:00]} 47. Qxd6 {[%emt 0:00:00]} Qb2+ {[%emt 0:00:00]} 48. Kf3 {
[%emt 0:00:00]} Qxb5 {[%emt 0:03:22]} 49. Qxe6+ {[%emt 0:00:00]} Kf8 {[%emt 0:
00:00]} 50. Qf5+ {[%emt 0:00:00]} Qxf5+ {[%emt 0:00:04]} 51. gxf5 {[%emt 0:00:
00]} h6 {[%emt 0:00:27]} 52. e4 {[%emt 0:00:00]} Ke7 {[%emt 0:00:17]} 53. e5 {
[%emt 0:00:00]} Kf7 {[%emt 0:00:14]} 54. f6 {[%emt 0:00:00]} Ke6 {[%emt 0:00:
00]} 55. Kg4 {[%emt 0:00:00]} 1-0